bitfinex/quotes_BTCUSD_20211001
["timestamp","ask_amount","ask_price","bid_price","bid_amount"]
[1633120090893,0.87458726,47764.0,47763.0,0.052067]
[1633120091087,0.27458726,47764.0,47763.0,0.06055632]
[1633120091287,0.27458726,47764.0,47763.0,0.0666962]
[1633120091488,0.27458726,47764.0,47763.0,0.08474768]
[1633120091687,0.06478373,47764.0,47763.0,0.09812308]
[1633120091888,0.06478373,47764.0,47763.0,0.08641508]
[1633120092089,0.06478373,47764.0,47763.0,0.10204085]
[1633120092290,0.06478373,47764.0,47763.0,0.10860493]
[1633120092488,0.06478373,47764.0,47763.0,0.09996685]
[1633120092688,0.02818,47764.0,47763.0,0.08250511]
[1633120092888,0.02818,47764.0,47763.0,0.0773614]
[1633120093087,0.02818,47764.0,47763.0,0.0183]
[1633120093494,0.02818,47764.0,47763.0,0.0493]
[1633120094694,0.0647838,47764.0,47763.0,0.0493]
[1633120095092,0.0647838,47764.0,47763.0,0.0133]
[1633120095293,0.0647838,47764.0,47763.0,0.013373]
[1633120095495,0.0647838,47764.0,47763.0,0.045373]
[1633120096102,0.06607495,47764.0,47763.0,0.045373]
[1633120096298,0.0647838,47764.0,47763.0,0.045373]
[1633120096694,0.0647838,47764.0,47763.0,0.013373]
[1633120097495,0.06531367,47764.0,47763.0,0.045373]
[1633120097894,0.0647838,47764.0,47763.0,0.045373]
[1633120098296,0.02818,47764.0,47763.0,0.045373]
[1633120099095,0.02870987,47764.0,47763.0,0.013373]
[1633120099499,0.02870987,47764.0,47763.0,0.045373]
[1633120100304,0.06531374,47764.0,47763.0,0.045373]
[1633120100902,0.06531374,47764.0,47763.0,0.013373]
[1633120101502,0.06531374,47764.0,47763.0,0.044373]
[1633120101503,0.06657588,47764.0,47763.0,0.044373]
[1633120102103,0.06657588,47764.0,47757.0,0.0183]
[1633120102104,1.65,47763.0,47757.0,0.0183]
[1633120102307,0.22728022,47754.0,47753.0,0.07938294]
[1633120102509,0.90194313,47754.0,47753.0,0.07938294]
[1633120102703,0.90194313,47754.0,47753.0,0.07953851]
[1633120102903,0.60544205,47754.0,47753.0,0.07953851]
[1633120103105,0.02944709,47754.0,47753.0,0.07953851]
[1633120103505,0.05344709,47754.0,47753.0,0.07953851]
[1633120104105,0.28750753,47754.0,47753.0,0.07953851]
[1633120104703,0.28750753,47754.0,47753.0,0.00015557]
[1633120104904,0.26473185,47754.0,47753.0,0.00015557]
[1633120105711,0.64970009,47754.0,47753.0,0.00015557]
[1633120105905,0.64970009,47754.0,47753.0,0.00023004]
[1633120106105,0.64925799,47754.0,47753.0,0.00023004]
[1633120107706,0.67225799,47754.0,47753.0,0.00023004]
[1633120109312,0.63569116,47754.0,47753.0,0.00023004]
[1633120109508,0.61322103,47754.0,47753.0,0.00023004]
[1633120109708,0.63569116,47754.0,47753.0,0.00023004]
[1633120110907,0.61146684,47754.0,47753.0,0.00023004]
[1633120111107,0.64803374,47754.0,47753.0,0.00023004]
[1633120111715,0.67203374,47754.0,47753.0,0.00023004]
[1633120112711,0.67325948,47754.0,47753.0,0.00023004]
[1633120112911,0.64925948,47754.0,47753.0,0.00023004]
[1633120113312,0.64978935,47754.0,47753.0,0.00023004]
[1633120113515,0.64925948,47754.0,47753.0,0.00023004]
[1633120113713,0.67325948,47754.0,47753.0,0.00023004]
[1633120114319,0.67203374,47754.0,47753.0,0.00023004]
[1633120114725,0.63546684,47754.0,47753.0,0.00023004]
[1633120114917,0.61146684,47754.0,47753.0,0.00023004]
[1633120115119,0.61199671,47754.0,47753.0,0.00023004]
[1633120115717,0.63499671,47754.0,47753.0,0.00023004]
[1633120116118,0.63446684,47754.0,47753.0,0.00023004]
[1633120116517,0.67156368,47754.0,47753.0,0.00023004]
[1633120116920,0.64856368,47754.0,47753.0,0.00023004]
[1633120117520,0.30016227,47754.0,47753.0,0.00023004]
[1633120117719,0.32316227,47754.0,47753.0,0.00023004]
[1633120118920,0.30016227,47754.0,47753.0,0.00023004]
[1633120119121,0.57075423,47754.0,47753.0,0.00023004]
[1633120119525,0.57075423,47754.0,47751.0,0.01353004]
[1633120119721,0.32316227,47754.0,47751.0,0.01353004]
[1633120119920,0.00052987,47753.0,47751.0,0.01353004]
[1633120120123,0.08730487,47754.0,47751.0,0.01353004]
[1633120120321,0.0507379,47754.0,47751.0,0.01353004]
[1633120121124,0.00127372,47752.0,47751.0,0.01353004]
[1633120121722,0.02227372,47752.0,47751.0,0.04453004]
[1633120121922,0.05001162,47752.0,47751.0,0.04453004]
[1633120122125,0.08657123,47752.0,47751.0,0.04453004]
[1633120122326,0.0871011,47752.0,47751.0,0.04453004]
[1633120122722,0.0871011,47752.0,47751.0,0.09956586]
[1633120122922,0.08582738,47752.0,47751.0,0.04453004]
[1633120123124,0.08529751,47752.0,47751.0,0.11440963]
[1633120123523,0.06482738,47752.0,47751.0,0.08340963]
[1633120123725,0.08682738,47752.0,47751.0,0.04453004]
[1633120123925,0.08629751,47752.0,47751.0,0.04453004]
[1633120124326,0.08682738,47752.0,47751.0,0.04453004]
[1633120124732,0.08629751,47752.0,47751.0,0.04453004]
[1633120124926,0.08759741,47752.0,47751.0,0.04453004]
[1633120125126,0.06559741,47752.0,47751.0,0.01353004]
[1633120125328,0.06612728,47752.0,47751.0,0.01353004]
[1633120125528,0.06559741,47752.0,47751.0,0.01353004]
[1633120125727,0.0510378,47752.0,47751.0,0.04453004]
[1633120125927,0.0510378,47752.0,47751.0,0.11788739]
[1633120126128,0.05156767,47752.0,47751.0,0.11788739]
[1633120126529,0.0497379,47752.0,47751.0,0.11788739]
[1633120127129,0.62988115,47759.0,47751.0,0.08688739]
[1633120127334,0.48311904,47759.0,47751.0,0.01353004]
[1633120127731,0.48311904,47759.0,47751.0,0.04253004]
[1633120127732,0.17540092,47759.0,47751.0,0.04253004]
[1633120127928,0.03655968,47752.0,47751.0,0.04253004]
[1633120128129,0.08973968,47752.0,47751.0,0.04253004]
[1633120128530,0.08973968,47752.0,47751.0,0.04208835]
[1633120128930,0.0910099,47752.0,47751.0,0.01308835]
[1633120129732,0.1150099,47752.0,47751.0,0.04508835]
[1633120129935,0.1150099,47752.0,47751.0,0.11524354]
[1633120130534,0.11373968,47752.0,47751.0,0.11524354]
[1633120130933,0.08973968,47752.0,47751.0,0.08324354]
[1633120131133,0.05318,47752.0,47751.0,0.09180987]
[1633120131334,0.05318,47752.0,47751.0,0.07976378]
[1633120131537,0.05318,47752.0,47751.0,0.01308835]
[1633120131737,0.07718,47752.0,47751.0,0.04508835]
[1633120132539,0.07718,47752.0,47751.0,0.10579418]
[1633120132935,0.05318,47752.0,47751.0,0.07379418]
[1633120133134,0.05318,47752.0,47751.0,0.09256382]
[1633120133336,0.08973975,47752.0,47751.0,0.08189955]
[1633120133535,0.08973975,47752.0,47751.0,0.08057506]
[1633120133737,0.11498235,47752.0,47751.0,0.11913719]
[1633120134537,0.11498235,47752.0,47751.0,0.09413719]
[1633120134737,0.11373975,47752.0,47751.0,0.09413719]
[1633120135741,0.11473975,47752.0,47751.0,0.09413719]
[1633120136341,0.86473975,47752.0,47751.0,0.06963719]
[1633120136538,0.11473975,47752.0,47751.0,0.06963719]
[1633120136738,0.07818,47752.0,47751.0,0.06963719]
[1633120137139,0.07818,47752.0,47751.0,0.03863719]
[1633120137140,0.05318,47752.0,47751.0,0.03863719]
[1633120137348,0.27763567,47752.0,47751.0,0.07813775]
[1633120137542,0.05443567,47752.0,47751.0,0.07549259]
[1633120137748,0.07843567,47752.0,47751.0,0.10613947]
[1633120138746,0.11499549,47752.0,47751.0,0.10613947]
[1633120138943,0.11499549,47752.0,47751.0,0.0183]
[1633120139144,0.09099549,47752.0,47751.0,0.0183]
[1633120139744,0.11599549,47752.0,47751.0,0.0493]
[1633120139943,0.11473982,47752.0,47751.0,0.0493]
[1633120140946,0.08973982,47752.0,47751.0,0.0183]
[1633120141745,0.11273982,47752.0,47751.0,0.0493]
[1633120142450,0.07618,47752.0,47751.0,0.0493]
[1633120142851,0.07618,47752.0,47751.0,1.5493]
[1633120143048,0.05318,47752.0,47751.0,1.5183]
[1633120143251,0.05318,47752.0,47751.0,1.7032887]
[1633120143849,0.05318,47752.0,47751.0,1.7362887]
[1633120144250,0.08973989,47752.0,47751.0,1.7362887]
[1633120144455,0.1,47769.0,47753.0,2.4]
[1633120144653,0.06268194,47769.0,47763.0,0.00121676]
[1633120144852,0.05318,47768.0,47764.0,0.3183]
[1633120145053,0.05318,47768.0,47766.0,0.613824]
[1633120145249,1.94e-06,47769.0,47767.0,4.30737581]
[1633120145454,1.94e-06,47769.0,47768.0,0.85417373]
[1633120145649,0.90500395,47780.0,47773.0,0.06276334]
[1633120145850,0.05318,47779.0,47776.0,0.209215]
[1633120146048,0.05318,47779.0,47777.0,0.72045714]
[1633120146253,0.02891021,47779.0,47778.0,0.27913196]
[1633120146449,0.02891021,47779.0,47778.0,0.36394635]
[1633120146650,0.02919725,47779.0,47778.0,0.36394635]
[1633120146851,0.02919725,47779.0,47778.0,1.01341625]
[1633120147448,0.02919725,47779.0,47778.0,1.01394635]
[1633120147849,0.04919725,47779.0,47778.0,1.06247969]
[1633120148450,0.04919725,47779.0,47778.0,0.41194959]
[1633120149051,0.02919725,47779.0,47778.0,0.38294959]
[1633120149450,0.02919725,47779.0,47778.0,0.38347969]
[1633120149649,0.02919725,47779.0,47778.0,0.36394635]
[1633120149852,0.06457741,47779.0,47778.0,0.39341625]
[1633120150856,0.06457741,47779.0,47778.0,1.80161625]
[1633120151051,0.04757741,47779.0,47778.0,1.77161625]
[1633120151856,0.06457741,47779.0,47778.0,1.80114635]
[1633120152655,0.06457741,47779.0,47778.0,0.57201439]
[1633120152854,0.06457741,47779.0,47778.0,0.57148429]
[1633120153329,0.02419725,47779.0,47778.0,2.96201763]
[1633120153524,0.00028704,47779.0,47778.0,0.56201763]
[1633120153726,0.00028704,47779.0,47778.0,1.86750482]
[1633120153925,0.01228704,47779.0,47778.0,2.99101763]
[1633120154323,0.01228704,47779.0,47778.0,0.59101763]
[1633120154923,0.01228704,47779.0,47778.0,0.59154773]
[1633120155125,0.05318,47792.0,47778.0,0.56254773]
[1633120155325,0.05318,47792.0,47779.0,0.7527197]
[1633120155525,0.05318,47792.0,47780.0,0.08401753]
[1633120155928,0.07518,47792.0,47780.0,0.08401753]
[1633120156628,0.07518,47792.0,47781.0,0.313838]
[1633120156826,0.07518,47792.0,47782.0,0.29360949]
[1633120157229,0.05318,47792.0,47782.0,0.29360949]
[1633120157828,0.00128739,47786.0,47782.0,0.31560949]
[1633120158832,0.00128739,47786.0,47783.0,0.01950859]
[1633120159029,0.00128739,47786.0,47784.0,0.0183]
[1633120159429,7.175e-05,47785.0,47784.0,0.0183]
[1633120159632,7.175e-05,47785.0,47784.0,0.95031307]
[1633120159831,7.175e-05,47785.0,47784.0,3.8003208]
[1633120160032,0.9344,47796.0,47785.0,2.4]
[1633120160230,0.08063231,47802.0,47785.0,2.4]
[1633120160231,0.08063231,47802.0,47790.0,0.4582]
[1633120160433,0.08063231,47802.0,47797.0,0.313715]
[1633120160631,0.08063231,47802.0,47797.0,0.46264351]
[1633120160831,0.01845255,47800.0,47798.0,0.0005301]
[1633120161035,0.01845255,47800.0,47799.0,0.0183]
[1633120161832,0.04245255,47800.0,47799.0,0.0463]
[1633120162235,0.04245255,47800.0,47799.0,0.33544653]
[1633120162635,0.04245255,47800.0,47799.0,0.0463]
[1633120163234,0.04245255,47800.0,47799.0,0.0183]
[1633120163235,0.01845255,47800.0,47799.0,0.0183]
[1633120163638,0.01968825,47800.0,47799.0,0.0183]
[1633120163834,0.04068825,47800.0,47799.0,0.0483]
[1633120164235,0.0222357,47800.0,47799.0,0.06736141]
[1633120165036,0.48824895,47800.0,47799.0,0.06736141]
[1633120165236,0.24404895,47800.0,47799.0,0.03736141]
[1633120165639,2.41038498,47800.0,47799.0,0.01944112]
[1633120165841,2.85486298,47800.0,47799.0,0.04544112]
[1633120166038,2.43761789,47800.0,47799.0,0.04544112]
[1633120166241,2.66081789,47800.0,47799.0,0.026]
[1633120166437,0.71081789,47800.0,47799.0,0.026]
[1633120166639,0.99568389,47800.0,47799.0,0.026]
[1633120167239,0.12337216,47793.0,47790.0,0.19114328]
[1633120167439,0.00122638,47791.0,47790.0,0.0183]
[1633120167638,0.00253103,47791.0,47790.0,0.12099086]
[1633120167839,0.00253103,47791.0,47790.0,0.0493]
[1633120168036,0.00253103,47791.0,47790.0,0.12290083]
[1633120168237,0.00253103,47791.0,47790.0,0.0493]
[1633120168439,0.00253103,47791.0,47790.0,0.10684298]
[1633120169236,0.00253103,47791.0,47790.0,0.07584298]
[1633120169437,0.00253103,47791.0,47790.0,0.17898461]
[1633120169637,0.00253103,47791.0,47790.0,0.07903553]
[1633120169838,0.02253103,47791.0,47790.0,0.22302827]
[1633120170037,0.02253103,47791.0,47790.0,0.12164386]
[1633120170238,0.02253103,47791.0,47790.0,0.21644778]
[1633120170437,0.02253103,47791.0,47790.0,0.12164386]
[1633120170638,0.02253103,47791.0,47790.0,0.2147954]
[1633120170837,0.02253103,47791.0,47790.0,0.12164386]
[1633120171239,0.27856914,47787.0,47784.0,0.209192]
[1633120171444,0.33879127,47787.0,47785.0,0.00771241]
[1633120171841,0.0281479,47786.0,47785.0,0.00771241]
[1633120172041,0.02938081,47786.0,47785.0,0.11306523]
[1633120172242,0.02938081,47786.0,47785.0,0.00771241]
[1633120172441,0.02938081,47786.0,47785.0,0.10552189]
[1633120172642,0.02938081,47786.0,47785.0,0.00771241]
[1633120172643,0.02567085,47786.0,47785.0,0.00771241]
[1633120172842,0.02567085,47786.0,47785.0,0.10477816]
[1633120173041,0.02567085,47786.0,47785.0,0.10526208]
[1633120173247,0.02567085,47786.0,47785.0,0.11289767]
[1633120173442,0.02567085,47786.0,47785.0,0.11728456]
[1633120173843,0.04967085,47786.0,47785.0,0.14928456]
[1633120175047,0.10285085,47786.0,47785.0,0.14928456]
[1633120175244,0.10285085,47786.0,47785.0,0.12954673]
[1633120175245,0.05570295,47786.0,47785.0,0.12954673]
[1633120175843,0.07970295,47786.0,47785.0,0.16254673]
[1633120176249,0.07970295,47786.0,47785.0,0.13254673]
[1633120176445,0.07970295,47786.0,47785.0,0.07145943]
[1633120177047,0.07970295,47786.0,47784.0,0.28802868]
[1633120177246,0.08134907,47786.0,47785.0,0.0183]
[1633120177450,0.08134907,47786.0,47785.0,0.7183]
[1633120177648,0.08134907,47786.0,47785.0,0.0183]
[1633120177850,0.10134907,47786.0,47785.0,0.0523]
[1633120178052,0.10134907,47786.0,47785.0,0.07078485]
[1633120179257,0.10134907,47786.0,47785.0,0.03678485]
[1633120179452,0.08134907,47786.0,47785.0,0.03678485]
[1633120179652,0.08005903,47786.0,47785.0,0.03678485]
[1633120180054,0.09905903,47786.0,47785.0,0.06978485]
[1633120180855,0.07341291,47786.0,47785.0,0.07591593]
[1633120181254,0.05441291,47786.0,47785.0,0.04291593]
[1633120181859,0.05441291,47786.0,47785.0,0.07391593]
[1633120182055,0.07841291,47786.0,47785.0,0.07391593]
[1633120182656,0.07841291,47786.0,47785.0,0.06778485]
[1633120182855,0.11019018,47786.0,47785.0,0.06778485]
[1633120183310,0.08619018,47786.0,47785.0,0.35060285]
[1633120183908,0.10119018,47786.0,47785.0,0.38460285]
[1633120184913,0.10119018,47786.0,47785.0,0.38408483]
[1633120185313,0.08619018,47786.0,47785.0,0.35008483]
[1633120185912,0.08619018,47786.0,47785.0,0.38408483]
[1633120186111,0.10119018,47786.0,47785.0,0.38408483]
[1633120186314,0.06941291,47786.0,47785.0,0.39021591]
[1633120187716,0.05441291,47786.0,47785.0,0.35621591]
[1633120187916,0.05541291,47786.0,47785.0,0.39121591]
[1633120188314,0.08719025,47786.0,47785.0,0.38508483]
[1633120188718,0.08719025,47786.0,47785.0,0.07126683]
[1633120189720,0.08619025,47786.0,47785.0,0.03626683]
[1633120189918,0.10919025,47786.0,47785.0,0.06826683]
[1633120190521,0.10919025,47786.0,47785.0,0.32194522]
[1633120191222,0.10919025,47786.0,47785.0,1.42548238]
[1633120191823,0.05441291,47786.0,47785.0,1.42423038]
[1633120192022,0.07541291,47786.0,47785.0,1.46136146]
[1633120192624,0.07541291,47786.0,47785.0,2.06147156]
[1633120192823,0.07541291,47786.0,47785.0,2.82503886]
[1633120193422,0.05441291,47786.0,47785.0,2.79403886]
[1633120193823,0.03537362,47789.0,47787.0,0.3]
[1633120194024,0.01037362,47789.0,47788.0,0.67594871]
[1633120194221,0.01037362,47789.0,47788.0,0.4238501]
[1633120194422,0.01037362,47789.0,47788.0,0.42244392]
[1633120194620,0.01037362,47789.0,47788.0,1.52744392]
[1633120195621,0.01037362,47789.0,47788.0,0.42244392]
[1633120195822,0.01037362,47789.0,47788.0,0.42191382]
[1633120196021,0.01037362,47789.0,47788.0,0.45391382]
[1633120196222,0.01037362,47789.0,47788.0,0.45444392]
[1633120197426,0.01037362,47789.0,47788.0,0.42244392]
[1633120197827,0.00037362,47789.0,47788.0,0.42244392]
[1633120198022,0.02237362,47789.0,47788.0,0.45391382]
[1633120198325,0.02237362,47789.0,47788.0,0.45444392]
[1633120198524,0.02237362,47789.0,47788.0,0.45391382]
[1633120198732,0.02237362,47789.0,47788.0,0.42972708]
[1633120198927,0.02237362,47789.0,47788.0,0.4145077]
[1633120199325,0.02237362,47789.0,47788.0,1.5195077]
[1633120200130,0.02237362,47789.0,47788.0,1.5505077]
[1633120200333,7.174e-05,47791.0,47788.0,3.9185077]
[1633120200530,7.174e-05,47791.0,47790.0,3.1582]
[1633120200730,7.174e-05,47791.0,47790.0,0.7907091]
[1633120200932,7.174e-05,47791.0,47790.0,0.78947262]
[1633120201330,7.174e-05,47791.0,47790.0,0.79000272]
[1633120201730,7.174e-05,47791.0,47790.0,1.09936637]
[1633120201933,7.174e-05,47791.0,47790.0,2.20436637]
[1633120202134,0.02407174,47791.0,47790.0,2.23436637]
[1633120203329,0.02407174,47791.0,47790.0,2.20436637]
[1633120203532,7.174e-05,47791.0,47790.0,1.89447262]
[1633120204130,0.00835032,47791.0,47790.0,1.92447262]
[1633120204937,0.00835032,47791.0,47790.0,0.81947262]
[1633120205334,0.00085678,47801.0,47790.0,0.78947262]
[1633120205534,0.00085678,47801.0,47794.0,0.209147]
[1633120205736,0.00085678,47801.0,47797.0,0.313721]
[1633120205934,0.00085678,47801.0,47798.0,0.0183]
[1633120206136,0.02185678,47801.0,47798.0,0.0183]
[1633120207335,0.00085678,47801.0,47798.0,0.0183]
[1633120207535,0.00085678,47801.0,47798.0,0.227439]
[1633120207740,0.00085678,47801.0,47799.0,0.313708]
[1633120207935,0.00085678,47801.0,47800.0,0.0183]
[1633120208138,0.02285678,47801.0,47800.0,0.0183]
[1633120209536,0.00085678,47801.0,47800.0,0.0183]
[1633120209739,0.08063231,47802.0,47800.0,0.0183]
[1633120209740,0.08063231,47802.0,47800.0,1.16443642]
[1633120209939,0.08063231,47802.0,47801.0,3.13549696]
[1633120210138,0.08063231,47802.0,47801.0,1.85932706]
[1633120210344,0.0183,47805.0,47802.0,2.4]
[1633120210538,0.035547,47806.0,47804.0,0.74030544]
[1633120210739,0.03637296,47809.0,47806.0,1.95]
[1633120210740,0.00404996,47809.0,47806.0,1.95]
[1633120210943,0.00404996,47809.0,47808.0,0.4582]
[1633120211139,0.52734996,47825.0,47808.0,0.73605306]
[1633120211341,0.52734996,47825.0,47809.0,1.5632]
[1633120211538,0.00125008,47820.0,47810.0,0.0188301]
[1633120211940,0.00125008,47820.0,47816.0,0.313578]
[1633120212141,0.00127369,47826.0,47817.0,0.58128662]
[1633120212341,0.00127369,47826.0,47818.0,0.0005301]
[1633120212544,0.00127326,47826.0,47819.0,0.0183]
[1633120212944,0.00127326,47826.0,47823.0,0.34429069]
[1633120213140,0.00127326,47826.0,47824.0,0.27238226]
[1633120213541,0.00127326,47826.0,47824.0,0.0183]
[1633120213742,0.00127326,47826.0,47824.0,0.331861]
[1633120213942,0.00127326,47826.0,47825.0,0.24988041]
[1633120214140,0.02627326,47826.0,47825.0,0.26818041]
[1633120214343,0.2459923,47826.0,47825.0,0.26818041]
[1633120214542,0.2459923,47826.0,47825.0,0.25177703]
[1633120214944,0.02156002,47826.0,47825.0,0.25177703]
[1633120215448,0.00028676,47826.0,47825.0,0.25177703]
[1633120215643,0.00028676,47826.0,47825.0,0.0183]
[1633120216045,0.02428676,47826.0,47825.0,0.0453]
[1633120216246,0.02428676,47826.0,47825.0,0.28493492]
[1633120216444,0.02428676,47826.0,47825.0,0.0453]
[1633120217246,0.02556686,47826.0,47825.0,0.0453]
[1633120217445,0.02556686,47826.0,47820.0,0.0183]
[1633120217446,0.09059999,47824.0,47820.0,0.0183]
[1633120217645,0.09863512,47823.0,47820.0,0.0183]
[1633120217844,2.40124867,47821.0,47820.0,0.0183]
[1633120218048,0.00124867,47821.0,47820.0,0.0473]
[1633120218446,0.00124867,47821.0,47820.0,0.28408261]
[1633120218644,0.00124867,47821.0,47820.0,0.0473]
[1633120219246,0.10659999,47824.0,47820.0,0.360883]
[1633120219445,0.10659999,47824.0,47820.0,0.331883]
[1633120219646,0.09059999,47824.0,47820.0,0.331883]
[1633120220044,0.11559999,47824.0,47820.0,0.355883]
[1633120221444,0.09059999,47824.0,47820.0,0.331883]
[1633120222046,0.11659999,47824.0,47821.0,0.22804982]
[1633120222245,0.11659999,47824.0,47822.0,0.0183]
[1633120222446,0.11659999,47824.0,47823.0,0.0183]
[1633120222848,0.11686286,47824.0,47823.0,0.0183]
[1633120223045,0.11686286,47824.0,47823.0,0.331858]
[1633120223251,0.11686286,47824.0,47823.0,0.56145463]
[1633120223444,0.09086286,47824.0,47823.0,0.331858]
[1633120224045,0.11686286,47824.0,47823.0,0.358858]
[1633120225448,0.09086286,47824.0,47823.0,0.331858]
[1633120226048,0.09086286,47824.0,47823.0,0.355858]
[1633120226249,0.11986286,47824.0,47823.0,0.355858]
[1633120226847,0.11986286,47824.0,47823.0,0.36181825]
[1633120227049,0.15178139,47824.0,47823.0,0.36181825]
[1633120227450,0.15178139,47824.0,47823.0,0.04826025]
[1633120227650,0.12407324,47824.0,47823.0,0.02426025]
[1633120228051,0.15707324,47824.0,47823.0,0.02426025]
[1633120228249,0.15578139,47824.0,47823.0,0.02426025]
[1633120229252,0.15578139,47824.0,47823.0,0.33781925]
[1633120229451,0.12278139,47824.0,47823.0,0.33781925]
[1633120230252,0.15078139,47824.0,47823.0,0.35981925]
[1633120231450,0.15078139,47824.0,47823.0,0.33781925]
[1633120231649,0.12278139,47824.0,47823.0,0.33781925]
[1633120232050,0.12278139,47824.0,47823.0,0.02426025]
[1633120232250,0.12186286,47824.0,47823.0,0.04426025]
[1633120232450,0.12186286,47824.0,47823.0,0.0383]
[1633120232857,1.79628126,47824.0,47823.0,0.0383]
[1633120233055,0.34756468,47824.0,47823.0,0.02]
[1633120233453,0.31656468,47824.0,47813.0,0.0183]
[1633120233658,0.00128004,47817.0,47813.0,0.0183]
[1633120233854,0.0014593,47817.0,47813.0,0.0183]
[1633120234054,0.0224593,47817.0,47816.0,0.031]
[1633120234654,0.22642117,47817.0,47816.0,0.031]
[1633120235556,0.0224593,47817.0,47816.0,0.031]
[1633120235955,0.0014593,47817.0,47813.0,0.0183]
[1633120236156,0.23586176,47816.0,47813.0,0.0183]
[1633120236355,0.00014342,47814.0,47813.0,0.0183]
[1633120237955,0.03202508,47814.0,47813.0,0.02430518]
[1633120238154,0.05202508,47814.0,47813.0,0.05630518]
[1633120239558,0.05327745,47814.0,47813.0,0.05130518]
[1633120239758,0.17662434,47816.0,47813.0,0.01930518]
[1633120240222,0.024,47814.0,47813.0,0.05030518]
[1633120240357,0.07718,47814.0,47813.0,0.05030518]
[1633120241364,0.07218,47814.0,47813.0,0.01930518]
[1633120241562,0.05318,47814.0,47813.0,0.33293318]
[1633120242162,0.05585454,47814.0,47813.0,0.36593318]
[1633120242768,0.05160349,47814.0,47813.0,0.36593318]
[1633120243362,0.06754439,47814.0,47813.0,0.359928]
[1633120243562,0.06754439,47814.0,47813.0,0.37586883]
[1633120243763,0.06754439,47814.0,47813.0,0.87586883]
[1633120244163,0.06754439,47814.0,47813.0,0.87886883]
[1633120244565,0.06740296,47814.0,47813.0,0.87886883]
[1633120245567,0.06740296,47814.0,47813.0,0.84286883]
[1633120246371,0.08040296,47814.0,47813.0,0.87786883]
[1633120246576,0.08040296,47814.0,47813.0,1.33606883]
[1633120246772,0.08040296,47814.0,47813.0,1.4778398]
[1633120247775,0.06740296,47814.0,47813.0,1.30106883]
[1633120247972,0.06740296,47814.0,47813.0,1.80106883]
[1633120248374,0.06740296,47814.0,47813.0,1.83806883]
[1633120248773,0.05146206,47814.0,47813.0,1.83806883]
[1633120248976,0.05146206,47814.0,47813.0,1.82813318]
[1633120249238,0.04146206,47814.0,47813.0,2.12866328]
[1633120249371,0.04146206,47814.0,47813.0,1.32866328]
[1633120249572,0.04146206,47814.0,47813.0,1.32813318]
[1633120249771,0.04146206,47814.0,47813.0,1.29113318]
[1633120250173,0.04146206,47814.0,47813.0,1.59113318]
[1633120250370,0.04146206,47814.0,47813.0,1.63113318]
[1633120251172,0.04146206,47814.0,47813.0,1.33113318]
[1633120251777,0.04146206,47814.0,47813.0,1.29113318]
[1633120252381,0.04146206,47814.0,47813.0,1.32813318]
[1633120253978,0.04146206,47821.0,47813.0,1.32813318]
[1633120254177,0.04146206,47821.0,47816.0,0.313605]
[1633120254383,0.01595399,47820.0,47817.0,0.0183]
[1633120254575,0.04146206,47819.0,47817.0,0.0183]
[1633120256179,0.27887494,47819.0,47817.0,0.0183]
[1633120256579,0.27887494,47819.0,47817.0,0.0543]
[1633120256779,0.04146206,47819.0,47817.0,0.0543]
[1633120257781,0.21743574,47818.0,47817.0,0.0543]
[1633120257985,0.2588978,47818.0,47817.0,0.0543]
[1633120258382,0.2588978,47818.0,47817.0,0.01824]
[1633120259785,0.05741796,47818.0,47817.0,0.01824]
[1633120259983,0.05741796,47818.0,47817.0,0.05024]
[1633120260184,0.07741796,47818.0,47817.0,0.05024]
[1633120260784,0.09141796,47818.0,47817.0,0.08424]
[1633120261786,0.05741796,47818.0,47817.0,0.01824]
[1633120262585,0.07841796,47818.0,47817.0,0.05024]
[1633120262984,0.07841796,47818.0,47817.0,0.01824]
[1633120263986,0.05741796,47818.0,47817.0,0.01824]
[1633120264584,0.07841796,47818.0,47817.0,0.05124]
[1633120265385,0.06246206,47818.0,47817.0,0.05124]
[1633120265586,0.06246206,47818.0,47817.0,0.07316804]
[1633120266386,0.04146206,47818.0,47817.0,0.04016804]
[1633120266591,0.06246206,47818.0,47817.0,0.07316804]
[1633120267987,0.04146206,47818.0,47817.0,0.04016804]
[1633120268589,0.06146206,47818.0,47817.0,0.07316804]
[1633120268790,0.0602497,47818.0,47817.0,0.07316804]
[1633120269589,0.0602497,47818.0,47817.0,0.07196804]
[1633120269996,0.0402497,47818.0,47817.0,0.03896804]
[1633120270592,0.0612497,47818.0,47817.0,0.07096804]
[1633120270791,0.0612497,47818.0,47817.0,0.04904]
[1633120270992,0.07720574,47818.0,47817.0,0.04904]
[1633120271994,0.05620574,47818.0,47817.0,0.01704]
[1633120272598,0.07720574,47818.0,47817.0,0.04904]
[1633120273997,0.05620574,47818.0,47817.0,0.01704]
[1633120274694,0.07620574,47818.0,47817.0,0.05004]
[1633120275893,0.05620574,47818.0,47817.0,0.01704]
[1633120276296,0.0402497,47818.0,47817.0,0.01704]
[1633120276500,0.0402497,47822.0,47817.0,0.03896804]
[1633120276694,0.0602497,47818.0,47817.0,0.07196804]
[1633120277898,0.0402497,47818.0,47817.0,0.03896804]
[1633120278295,0.0402497,47818.0,47817.0,0.28697645]
[1633120278696,0.0582497,47818.0,47817.0,0.32097645]
[1633120279497,0.0582497,47818.0,47817.0,0.07349814]
[1633120279696,0.0582497,47818.0,47817.0,0.30308862]
[1633120279898,0.0582497,47818.0,47817.0,0.26908862]
[1633120280095,0.0402497,47818.0,47817.0,0.26908862]
[1633120280695,0.0402497,47818.0,47817.0,0.07349814]
[1633120280897,0.0402497,47818.0,47817.0,0.80397511]
[1633120281096,0.0402497,47818.0,47817.0,0.57349814]
[1633120281899,0.05620588,47818.0,47817.0,0.5515701]
[1633120282097,0.05620588,47818.0,47817.0,0.5175701]
[1633120282305,0.05620588,47818.0,47817.0,0.51704]
[1633120282701,0.05620588,47818.0,47817.0,0.55004]
[1633120283902,0.05620588,47818.0,47817.0,0.51704]
[1633120284704,0.05620588,47818.0,47817.0,0.55004]
[1633120286160,0.05620588,47818.0,47817.0,0.50704]
[1633120286759,0.05620588,47818.0,47817.0,0.55004]
[1633120287358,0.0402497,47818.0,47817.0,0.55004]
[1633120287560,0.0402497,47818.0,47817.0,0.57196804]
[1633120288762,0.0402497,47818.0,47817.0,0.60996804]
[1633120288961,0.0402497,47818.0,47817.0,0.52896804]
[1633120290764,0.0402497,47818.0,47817.0,0.57096804]
[1633120291966,0.0402497,47818.0,47817.0,0.52896804]
[1633120292567,0.0402497,47818.0,47817.0,0.50704]
[1633120292766,0.05620601,47818.0,47817.0,0.54504]
[1633120292966,0.05620601,47818.0,47817.0,0.56696804]
[1633120293166,0.05443071,47818.0,47817.0,0.56696804]
[1633120293366,0.05443071,47818.0,47817.0,0.56196804]
[1633120294171,0.05443071,47818.0,47817.0,0.52396804]
[1633120294772,0.05443071,47818.0,47817.0,0.56296804]